Cogmind - Beta 10 @@@ ROGUE MODE // 2020.09.19 @ 12:25:17 Player: Jim Result: Destroyed by as-04094 with Assembled Blade Performance ------------- Evolutions (1) 500 Regions Visited (3) 600 Robots Destroyed (26) 130 Value Destroyed (537) 537 Prototype IDs (0) 0 Alien Tech Used (0) 0 Bonus (0) 0 TOTAL SCORE: 1767 Bonus ------- None Cogmind --------- Core Integrity 0/400 Matter 300/300 Energy 100/100 System Corruption 0% Temperature Cool (0) Movement Core (100) Ox1 Location -9/Mines Parts ------- > --- POWER (1) -------- (None) > --- PROPULSION (4) --- (None) > --- UTILITY (2) ------ Small Storage Unit > --- WEAPON (2) ------- (None) > --- INVENTORY (6) ---- Improved Ion Engine Light Treads Light Treads Aluminum Leg Aluminum Leg Seismic Analyzer Peak State ------------ > --- POWER ------------ Improved Ion Engine > --- PROPULSION ------- Light Treads Aluminum Leg Aluminum Leg Aluminum Leg > --- UTILITY ---------- Small Storage Unit Light Armor Plating > --- WEAPON ----------- Autogun Autogun > --- INVENTORY -------- Light Treads EM Pulse Gun [Rating: 12] Favorites ----------- Power Improved Ion Engine Engine Improved Ion Engine Propulsion Aluminum Leg Treads Light Treads Leg Aluminum Leg Utility Small Storage Unit Storage Small Storage Unit Protection Light Armor Plating Weapon Autogun Energy Gun EM Pulse Gun Ballistic Gun Autogun Build | -11 -10 -9 -9 ------- Run | Scr Mat Mat Min Slots Evolved 2 | . . 2 . Power . | . . . . Propulsion 2 | . . 2 . Utility . | . . . . Weapon . | . . . . Parts Attached 13 | . 4 8 1 Power 2 | . 2 . . Engine 2 | . 2 . . Core . | . . . . Reactor . | . . . . Propulsion 6 | . . 5 1 Treads 1 | . . 1 . Leg 5 | . . 4 1 Wheel . | . . . . Hover . | . . . . Flight . | . . . . Utility 1 | . . 1 . Device . | . . . . Storage . | . . . . Processor . | . . . . Hackware . | . . . . Protection 1 | . . 1 . Artifact . | . . . . Weapon 4 | . 2 2 . Energy Gun 2 | . . 2 . Energy Cannon . | . . . . Ballistic Gun 2 | . 2 . . Ballistic Cannon . | . . . . Launcher . | . . . . Special Weapon . | . . . . Impact Weapon . | . . . . Slashing Weapon . | . . . . Piercing Weapon . | . . . . Special Melee Weapon . | . . . . Unidentified Prototypes . | . . . . Parts Lost 12 | . 1 6 5 Power 2 | . 1 . 1 Propulsion 5 | . . 1 4 Utility 1 | . . 1 . Weapon 4 | . . 4 . Highest Loss Streak 4 | . 1 4 3 Average Slot Usage (%) 76 | . 85 96 43 Engine 11 | . 14 11 9 Treads 1 | . . 4 . Leg 29 | . 28 38 22 Storage 12 | . 14 11 11 Protection 3 | . . 9 . Energy Gun 5 | . . 15 . Ballistic Gun 11 | . 27 5 . Naked Turns . | . . . . Heaviest Build 20 | 12 17 20 11 Greatest Support 40 | 20 20 40 40 Greatest Overweight (x) 1 | . . 1 . Average Overweight (x) . | . . . . Largest Inventory Capacity 6 | 6 6 6 6 Average Capacity 6 | 6 6 6 6 Most Carried 6 | 5 6 6 6 Average Carried 4 | 5 4 3 5 Final Capacity 6 | 6 6 6 6 Final Carried 6 | 4 4 6 6 Class Distribution -------------------- 96% | Mutant 3% | Scavenger-Mutant Dominant Class ---------------- Mutant | -10/Materials Mutant | -9/Materials Mutant | -9/Mines Resources | -11 -10 -9 -9 ----------- Run | Scr Mat Mat Min Matter Collected 644 | 200 242 202 . Remotely . | . . . . Salvage Created 723 | . 203 520 . Parts 58 | . 19 39 . Haulers Intercepted . | . . . . Recyclers Shooed . | . . . . Parts Field Recycled . | . . . . Retrieved Matter . | . . . . Parts Self-Destructed . | . . . . Prevented . | . . . . Kills | -11 -10 -9 -9 ------- Run | Scr Mat Mat Min Combat Hostiles Destroyed 25 | . 8 17 . Guns 22 | . 8 14 . AOE 3 | . . 3 . Classes Destroyed 4 | . 3 1 . Worker 1 | . 1 . . Swarmer 15 | . 6 9 . Grunt 7 | . 2 5 . Sentry 3 | . . 3 . Best Kill Streak 6 | . 2 6 . Combat Bots Only 6 | . 2 6 . Max Kills in Single Turn 3 | . 1 3 . Gunslinging . | . . . . Exploded 3 | . . 3 . Melee . | . . . . Uniques/NPCs Destroyed . | . . . . Combat | -11 -10 -9 -9 -------- Run | Scr Mat Mat Min Damage Taken 1752 | . 365 771 616 Core 478 | . 62 75 341 Absorbed by Shields . | . . . . Core Remaining (%) 87 | 100 75 . . Volleys Fired 78 | . 35 43 . Largest 2 | . 2 2 . Hottest 96 | . 46 96 . Shots Fired 138 | . 63 75 . Gun 138 | . 63 75 . Cannon . | . . . . Launcher . | . . . . Special . | . . . . Kinetic 86 | . 63 23 . Thermal 24 | . . 24 . Explosive . | . . . . Electromagnetic 28 | . . 28 . Robot Hit Streak 11 | . 6 11 . Robot Miss Streak 5 | . 5 4 . Penetration Max . | . . . . Secondary Targets . | . . . . Shots Hit Robots 75 | . 29 46 . Core Hits 31 | . 10 21 . Critical Hits 1 | . . 1 . Critical Kills 1 | . . 1 . Critical Parts Destroyed . | . . . . Melee Attacks . | . . . . Impact . | . . . . Slashing . | . . . . Piercing . | . . . . Sneak Attacks . | . . . . Combat Hostiles . | . . . . Follow-up Attacks . | . . . . Damage Inflicted 1134 | . 467 667 . Guns 1036 | . 467 569 . Cannons . | . . . . Explosions 98 | . . 98 . Melee . | . . . . Ramming . | . . . . Kinetic 719 | . 467 252 . Thermal 201 | . . 201 . Explosive . | . . . . Electromagnetic 214 | . . 214 . Impact . | . . . . Slashing . | . . . . Piercing . | . . . . Highest Corruption . | . . . . Average Corruption . | . . . . Corruption Purged . | . . . . Overload Shots . | . . . . Overflow Damage 6 | . . 6 . Projectiles . | . . . . Explosions 6 | . . 6 . Melee . | . . . . Knockbacks . | . . . . Impact . | . . . . Kinetic . | . . . . Secondary . | . . . . Self-Inflicted Damage 36 | . . 36 . Shots 1 | . . 1 . Rammed . | . . . . Targets Rammed . | . . . . Kicked . | . . . . Crushed . | . . . . Highest Temperature 312 | . 41 312 . Average Temperature 81 | . 10 111 . Received Heat Transfer 330 | . 75 177 78 Effects 4 | . . 4 . Energy Bleed 2 | . . 2 . Interference 2 | . . 2 . Siege Activations . | . . . . Robots Corrupted . | . . . . Combat Hostiles . | . . . . Parts Fried . | . . . . Impact Corruptions . | . . . . Robots Melted . | . . . . Combat Hostiles . | . . . . Parts Melted 1 | . . 1 . Heat Transferred 359 | . . 359 . Parts Sabotaged . | . . . . Parts Stolen . | . . . . Parts Stripped . | . . . . Power Chain Reactions 1 | . . 1 . Missiles Intercepted . | . . . . Alert | -11 -10 -9 -9 ------- Run | Scr Mat Mat Min Peak Influence 306 | . 145 306 95 Initial 95 | . . 31 95 Average 96 | . 66 155 64 Maximum Alert Level 1 | . . 1 . Low Security (%) 96 | 100 100 89 100 Level 1 3 | . . 10 . Level 2 . | . . . . Level 3 . | . . . . Level 4 . | . . . . Level 5 . | . . . . High Security . | . . . . Max Security . | . . . . Squads Dispatched 3 | . . 3 . Investigation 1 | . . 1 . Extermination . | . . . . Reinforcement 2 | . . 2 . Assault . | . . . . Garrison . | . . . . Intercept . | . . . . Construction Impeded . | . . . . Haulers Reinforced . | . . . . Stealth | -11 -10 -9 -9 --------- Run | Scr Mat Mat Min Distress Signals 3 | . 1 2 . Communications Jammed . | . . . . Distress Signals . | . . . . Times Spotted 53 | . 16 30 7 Peak Tracking Total 7 | . 3 7 4 Tactical Retreats 9 | . 4 2 3 Traps | -11 -10 -9 -9 ------- Run | Scr Mat Mat Min Traps Triggered 1 | . . 1 . Indirectly . | . . . . Trap Hack Attempts . | . . . . Triggered . | . . . . Disarmed . | . . . . Reprogrammed . | . . . . Reused . | . . . . Traps Extracted . | . . . . Installed . | . . . . Triggered . | . . . . Machines | -11 -10 -9 -9 ---------- Run | Scr Mat Mat Min Machines Disabled . | . . . . Max in Single Turn . | . . . . Machines Sabotaged . | . . . . Garrisons Compromised . | . . . . Overloaded Fab Kills . | . . . . Fab Network Shutdowns . | . . . . Hacking | -11 -10 -9 -9 --------- Run | Scr Mat Mat Min Machines Accessed 3 | . 1 2 . Terminals 3 | . 1 2 . Fabricators . | . . . . Repair Stations . | . . . . Recycling Units . | . . . . Scanalyzers . | . . . . Garrison Access . | . . . . Total Hacks 6 | . 2 4 . Successful 4 | . 1 3 . Failed 2 | . 1 1 . Catastrophic . | . . . . Database Lockouts . | . . . . Manual . | . . . . Terminals 6 | . 2 4 . Fabricators . | . . . . Repair Stations . | . . . . Recycling Units . | . . . . Scanalyzers . | . . . . Garrison Access . | . . . . Terminal Hacks 4 | . 1 3 . Recall Investigation 1 | . . 1 . Zone Layout 3 | . 1 2 . Fabricator Hacks . | . . . . Repair Station Hacks . | . . . . Recycling Unit Hacks . | . . . . Scanalyzer . | . . . . Garrison Access Hacks . | . . . . Unauthorized Hacks . | . . . . Terminals . | . . . . Fabricators . | . . . . Repair Stations . | . . . . Recycling Units . | . . . . Scanalyzers . | . . . . Garrison Access . | . . . . Data Cores Recovered . | . . . . Used . | . . . . Hacking Detections 2 | . 1 1 . Full Trace Events . | . . . . Feedback Events . | . . . . Feedback Blocked . | . . . . Robot Schematics Acquired . | . . . . Robots Built . | . . . . Matter . | . . . . Time . | . . . . Total Robot Build Rating . | . . . . Part Schematics Acquired . | . . . . Parts Built . | . . . . Matter . | . . . . Time . | . . . . Total Part Build Rating . | . . . . Parts Repaired . | . . . . Time . | . . . . Parts Recycled . | . . . . Recycled Matter . | . . . . Retrieved Matter . | . . . . Retrieved Components . | . . . . Parts Scanalyzed . | . . . . Part Schematics Acquired . | . . . . Parts Damaged . | . . . . Bothacking | -11 -10 -9 -9 ------------ Run | Scr Mat Mat Min Used RIF Installer . | . . . . Robots Hacked . | . . . . Non-combat . | . . . . Combat . | . . . . Robot Hacks Applied . | . . . . Relay Couplers Released . | . . . . Robots Rewired . | . . . . Allies Hacked . | . . . . Hacks Repelled . | . . . . Allies | -11 -10 -9 -9 -------- Run | Scr Mat Mat Min Total Allies . | . . . . Largest Group . | . . . . Highest-Rated Group . | . . . . Highest-Rated Ally . | . . . . Total Orders . | . . . . Ally Attacks . | . . . . Total Damage . | . . . . Kills . | . . . . Allies Corrupted . | . . . . Allies Melted . | . . . . Intel | -11 -10 -9 -9 ------- Run | Scr Mat Mat Min Robot Analysis Total . | . . . . Derelict Logs Recovered . | . . . . Drone Launches . | . . . . Drone Recoveries . | . . . . Exploration | -11 -10 -9 -9 ------------- Run | Scr Mat Mat Min Turns Passed 1572 | 1 553 544 474 Spaces Moved 699 | 1 353 316 29 Core . | . . . . Treads . | . . . . Legs 699 | 1 353 316 29 Wheels . | . . . . Hover . | . . . . Flight . | . . . . Fastest Speed 120 | 120 120 120 120 Average Speed 120 | 120 120 120 120 Slowest Speed 150 | 120 120 150 120 Overloaded Moves . | . . . . Propulsion Burnouts . | . . . . Robots Hopped . | . . . . Cave-ins Triggered . | . . . . Exploration Rate (%) 19 | 1 40 28 9 Regions Visited 3 Branch Regions 1 Pre-discovered Areas . | . . . . Known Exits Taken . | . . . . Unknown Exits Taken 3 | 1 1 1 . Scrap Searched . | . . . . Spaces Dug . | . . . . Terrain Destroyed 4 | . . 4 . Melee . | . . . . Projectile . | . . . . AOE 4 | . . 4 . Terrain Rammed . | . . . . Walls Destroyed . | . . . . Machines Disabled . | . . . . Actions | -11 -10 -9 -9 --------- Run | Scr Mat Mat Min Total 1309 | 2 432 407 468 Wait 503 | . 32 34 437 Move 696 | . 352 315 29 Hop . | . . . . Pick Up 13 | . 5 7 1 Fast Attach . | . . . . Attach 7 | . 1 5 1 Detach . | . . . . Swap 6 | . 3 3 . Drop 6 | 2 4 . . Fire 78 | . 35 43 . Melee . | . . . . Ram . | . . . . Kick . | . . . . Crush . | . . . . Escape Stasis . | . . . . Rewire . | . . . . Trap . | . . . . Miscellaneous . | . . . . Route ------- -11/Scrapyard -10/Materials (discovered 2 exits: *Mat / [*Min]) -9/Materials -9/Mines History --------- Turn | Location | Event 2 | -11/Scrapyard | Discovered new exit (range 0) 2 | -11/Scrapyard | Entered Materials 313 | -10/Materials | Build established: Mutant 330 | -10/Materials | Discovered new exit (range 5) 362 | -10/Materials | Discovered new exit (range 15) 555 | -10/Materials | Entered another Materials area 555 | -9/Materials | Evolved 2 slots: Propulsion x2 1085 | -9/Materials | Discovered new exit (range 13) 1099 | -9/Materials | Entered Mines 1112 | -9/Mines | Lost 4 parts (1n1u2w) 1134 | -9/Mines | Excavation squad dispatched 1134 | -9/Mines | A large section of the Mines collapsed 1384 | -9/Mines | Excavation squad dispatched 1549 | -9/Mines | Core integrity fell below 50% 1564 | -9/Mines | Core integrity fell below 20% 1573 | -9/Mines | Destroyed by as-04094 with Assembled Blade Last Messages --------------- 01090_ U-05 Engineer lays Concrete. 01092_ U-05 Engineer builds a Wall. LOCATION=UNKNOWN GOAL=ESCAPE Something is scanning the area. 01121_ Aluminum Leg destroyed. 01134_ ALERT: Suspicious cave-in, suspected derelict activity in mines. Dispatching escorted excavation squad. 01384_ ALERT: Derelict activity in mines confirmed. Dispatching additional escorted excavation squad. 01509_ T-07 Excavator is excavating. 01523_ Imp. Ion Engine destroyed. 01523_ T-07 Excavator is excavating. 01535_ Aluminum Leg destroyed. 01536_ T-07 Excavator is excavating. 01542_ as-04094 sneak attacks. 01542_ T-07 Excavator destroyed. 01546_ G-34 Mercenary destroyed. 01546_ Acquired Seismic Analyzer. 01551_ Aluminum Leg destroyed. Map ----- +----------------------------------------------------+ | ?????????????????????????????????????????????????? | | ?????????????????????????????????????????????????? | | ?????????????????????????????????????????????????? | | ?????????????????????????????????????????????????? | | ?????????????????????????????????????????????????? | | ?????????????????????????????????????????????????? | | ?????????????????????????????????????????????????? | | ?????????????????????????????????????????????????? | | ?????????????????????????###?????????????????????? | | ????????????????????????# ####??????????????????? | | ??????????????????####?# ??????????????????? | | ?????????????????## ## #????????????????????? | | ???????########### #????????????????????? | | ???????# #?????????????????????? | | ???????# #??????????????????????? | | ?? """ ####### #???????????????????????? | | ?? """ ????????# ##########???????????????? | | ? ??????????# ??????????????? | | ?###????????????## ??????????????? | | ?????????????????## ###########???????????????? | | ??????????????????# ####?????????????????????????? | | ??????????????????# #???####?????????????????????? | | ??????????????????# ##### ###????????????????????? | | ??????????????????# ;%##; #????????????????????? | | ??????????????????######%=###????????????????????? | | ???????????????????????##@ #????????????????????? | | ????????????????????????#|a%!#???????????????????? | | ????????????????????????# = #?????????????????? | | ????????????????????????#; *!%* #????????????????? | | ????????????????????????## % = #????????????????? | | ?????????????????????????##;; #????????????????? | | ???????????????????????????# ##????????????????? | | ????????????????????????????# ##?????????????????? | | ????????????????????????????? #??????????????????? | | ????????????????????????????? #??????????????????? | | ??????????????????????????????#??????????????????? | | ?????????????????????????????????????????????????? | | ?????????????????????????????????????????????????? | | ?????????????????????????????????????????????????? | | ?????????????????????????????????????????????????? | | ?????????????????????????????????????????????????? | | ?????????????????????????????????????????????????? | | ?????????????????????????????????????????????????? | | ?????????????????????????????????????????????????? | | ?????????????????????????????????????????????????? | | ?????????????????????????????????????????????????? | | | | | | | | | +----------------------------------------------------+ Best States ------------- Heat Dissipation 28 Energy Generation 12 Energy Capacity 265 Matter Stores 300 Matter Capacity 300 Sight Range 16 Terrain Scan Density 10 Armor Coverage 150 Evasion (%) 40 Item Schematics ----------------- None Robot Schematics ------------------ None Fabricated ------------ Nothing Alien Tech Used ----------------- None Achievements -------------- None Challenges ------------ None Game ------ Seed BladeOpticalRay Manual? 0 Play Time 00:24:26 Cumulative 27.2 hours Start 2020.09.19 @ 12:03:27 End 2020.09.19 @ 12:25:17 Sessions 1 Manual Loads 0 Difficulty Rogue Special Mode None Game No. 36 Rogue 23 Adventurer 0 Explorer 13 Win Type - Total 0 Types 0/0/0/0/0/0/0/0/0 Lore% 25 Gallery% 24 Achievement% 20 Wizard Run 0 Options --------- ASCII 1 Keyboard 0 Movement Mouse Keybinds 0 Fullscreen 1 Font 12/Terminus Map View 83x54 Tactical HUD 1 Map Filters NONE Filters NONE Steam 1 RUN: 109a4d7e-fdb0-4f12-b975-879ffd8d596f